bitfinex/quotes_ETHUSD_20250725
["timestamp","ask_amount","ask_price","bid_price","bid_amount"]
[1753471071449,1.642,3657.9,3657.6,1.7673]
[1753471071666,1.642,3657.9,3657.7,0.9385]
[1753471072055,2.73363494,3658.2,3657.8,1.0753]
[1753471072056,0.25552754,3658.0,3657.8,1.0753]
[1753471072276,2.98913122,3658.2,3657.9,0.9385]
[1753471072450,4.37565955,3658.1,3658.0,0.9385]
[1753471072801,1.642,3658.1,3657.8,0.1368]
[1753471073377,1.642,3658.1,3657.6,0.8288]
[1753471073378,0.25565202,3658.1,3658.0,0.8278]
[1753471073575,1.642,3658.3,3658.0,0.9646]
[1753471073782,1.642,3658.3,3658.0,1.9031]
[1753471073959,1.642,3658.3,3658.1,0.9385]
[1753471073960,1.89765202,3658.3,3658.1,0.9385]
[1753471074284,2.73358482,3658.2,3658.1,0.9385]
[1753471074473,2.98923684,3658.2,3658.1,0.9385]
[1753471074680,3.0,3658.2,3658.1,0.9385]
[1753471074989,5.98923684,3658.2,3658.1,0.9385]
[1753471075773,7.63123684,3658.2,3658.1,0.9385]
[1753471080308,7.37565955,3658.1,3658.0,0.1368]
[1753471080505,5.73380901,3657.9,3657.8,0.6126]
[1753471080808,5.98956637,3657.9,3657.8,0.6126]
[1753471081319,5.73380901,3657.9,3657.8,0.6126]
[1753471081619,3.0,3657.9,3657.8,1.0753]
[1753471082222,5.73380901,3657.9,3657.8,1.0753]
[1753471082723,3.0,3657.9,3657.8,1.0753]
[1753471083901,3.0,3657.9,3657.8,1.8452]
[1753471084491,5.73380901,3657.9,3657.8,1.8452]
[1753471084819,3.0,3657.9,3657.8,1.8452]
[1753471085803,5.73380901,3657.9,3657.8,1.8452]
[1753471090397,5.73380901,3657.9,3657.8,0.1368]
[1753471090398,6.58055659,3657.9,3657.8,0.1368]
[1753471091627,2.73395849,3657.7,3657.6,0.001]
[1753471092133,2.73395849,3657.7,3657.6,0.4768]
[1753471092426,2.73395849,3657.7,3657.6,0.001]
[1753471092931,2.73395849,3657.7,3657.6,0.4768]
[1753471096569,4.37595849,3657.7,3657.6,0.4768]
[1753471097520,4.37595849,3657.7,3657.6,0.001]
[1753471097721,5.5794,3657.7,3657.6,0.001]
[1753471099087,5.5794,3657.7,3657.6,0.4768]
[1753471101655,1.642,3657.7,3657.6,0.4768]
[1753471101853,1.642,3657.7,3657.6,0.9259]
[1753471102164,7.37583494,3657.9,3657.6,0.9259]
[1753471102664,7.37583494,3657.9,3657.7,0.4981]
[1753471102885,7.37583494,3657.9,3657.6,0.4501]
[1753471103086,7.37583494,3657.9,3657.7,0.4981]
[1753471103295,2.73388375,3657.8,3657.7,0.4981]
[1753471103650,2.73388375,3657.8,3657.6,0.4501]
[1753471104293,2.73388375,3657.8,3657.7,0.4981]
[1753471105255,8.49456874,3657.9,3657.7,0.4981]
[1753471105662,2.73389484,3657.8,3657.6,0.001]
[1753471105868,2.73389484,3657.8,3657.6,0.4501]
[1753471106189,2.73389484,3657.8,3657.7,0.4981]
[1753471106487,4.37589484,3657.8,3657.7,0.4981]
[1753471107602,1.642,3657.8,3657.7,0.4981]
[1753471108594,4.37588375,3657.8,3657.7,0.4981]
[1753471109556,1.642,3657.8,3657.7,0.4981]
[1753471110296,4.37588375,3657.8,3657.7,0.4981]
[1753471110706,2.73395849,3657.7,3657.6,0.001]
[1753471111196,4.37591522,3657.8,3657.6,0.001]
[1753471111398,2.73395849,3657.7,3657.6,0.001]
[1753471112170,3.18545849,3657.7,3657.6,0.001]
[1753471116213,9.1393699,3657.7,3657.6,0.001]
[1753471116380,10.9554699,3657.7,3657.6,0.001]
[1753471116905,10.9554699,3657.7,3656.8,0.1378]
[1753471116906,7.92655659,3656.9,3656.8,0.001]
[1753471117110,8.83705659,3656.9,3656.8,0.001]
[1753471117413,24.24265659,3656.9,3656.8,0.001]
[1753471117613,12.44174835,3656.9,3656.8,0.001]
[1753471118182,26.94174835,3656.9,3656.8,0.001]
[1753471119314,5.75358013,3656.2,3656.1,0.001]
[1753471119513,8.89038013,3656.2,3656.1,0.001]
[1753471119712,10.59137396,3656.2,3656.1,0.001]
[1753471119917,9.68577396,3656.2,3656.1,0.001]
[1753471120080,9.68577396,3656.2,3656.1,0.4991]
[1753471120280,8.85927396,3656.2,3656.1,0.4991]
[1753471121113,5.73508013,3656.2,3656.1,0.9482]
[1753471121294,5.73508013,3656.2,3656.1,0.4991]
[1753471122115,5.73508013,3656.2,3656.1,0.001]
[1753471122418,6.28508013,3656.2,3656.1,0.001]
[1753471122781,8.23877197,3656.2,3656.1,0.001]
[1753471122982,10.47167197,3656.2,3656.1,0.001]
[1753471124923,9.56607197,3656.2,3656.1,0.001]
[1753471125114,27.46367197,3656.2,3656.1,0.001]
[1753471128026,12.96367197,3656.2,3656.1,0.001]
[1753471128208,12.50957197,3656.2,3656.1,0.001]
[1753471128607,27.00957197,3656.2,3656.1,0.001]
[1753471129152,26.55807197,3656.2,3656.1,0.001]
[1753471130095,23.82299184,3656.2,3656.1,0.4639]
[1753471130300,26.55807197,3656.2,3656.1,0.4639]
[1753471131129,24.06607197,3656.2,3656.1,0.4639]
[1753471131930,9.56607197,3656.2,3656.1,0.4639]
[1753471132640,5.3288,3656.2,3656.1,0.9148]
[1753471132797,3.0,3656.2,3656.1,1.697]
[1753471133006,2.73456121,3656.9,3656.1,4.43210788]
[1753471133242,0.1368,3657.0,3656.5,2.87159667]
[1753471133509,1.21341141,3657.7,3656.5,2.87159667]
[1753471133510,2.988827,3657.5,3656.9,0.1368]
[1753471133709,1.642,3657.6,3657.0,3.64827981]
[1753471133906,0.39149605,3657.7,3657.1,0.9138]
[1753471134221,3.0,3657.3,3657.1,0.4629]
[1753471134549,0.25471392,3657.3,3657.1,0.4629]
[1753471134744,0.55,3657.2,3656.9,0.4629]
[1753471134955,0.55,3657.1,3656.9,0.1368]
[1753471135157,0.55,3657.0,3656.7,3.0917]
[1753471135355,3.28450963,3657.0,3656.7,2.6288]
[1753471135543,2.73455659,3656.9,3656.8,0.4629]
[1753471135750,0.55,3657.1,3656.8,0.4629]
[1753471135944,3.2844272,3657.1,3656.9,0.4629]
[1753471136308,3.2844272,3657.1,3657.0,0.4629]
[1753471136619,3.2844272,3657.1,3657.0,0.9138]
[1753471137248,6.2844272,3657.1,3657.0,0.4629]
[1753471140335,2.73459239,3656.9,3656.8,0.4629]
[1753471140565,3.28449739,3657.0,3656.9,0.4629]
[1753471140855,0.55,3657.0,3656.9,0.4629]
[1753471141023,2.192,3657.0,3656.9,0.4629]
[1753471141220,4.92648181,3657.0,3656.9,0.4629]
[1753471142438,1.642,3656.8,3656.7,1.0506]
[1753471142756,1.642,3656.4,3656.3,0.4629]
[1753471143065,1.642,3656.4,3656.3,3.4048]
[1753471143267,1.642,3656.7,3656.3,3.4048]
[1753471143422,1.642,3656.7,3656.4,0.9138]
[1753471143622,1.642,3656.7,3656.5,0.9138]
[1753471144064,5.73464208,3656.8,3656.5,2.491]
[1753471144065,4.37678094,3656.6,3656.5,2.491]
[1753471144367,2.73487059,3656.5,3656.4,2.491]
[1753471144863,1.642,3656.6,3656.4,3.4048]
[1753471145158,3.0,3656.8,3656.5,0.9138]
[1753471145159,1.642,3656.7,3656.5,0.9138]
[1753471145455,1.642,3656.7,3656.6,0.4629]
[1753471145658,4.37670615,3656.7,3656.6,0.4629]
[1753471146024,4.37670615,3656.7,3656.4,2.491]
[1753471146223,4.37679241,3656.6,3656.5,0.4629]
[1753471147561,1.642,3656.6,3656.5,2.9539]
[1753471147971,4.37678094,3656.6,3656.5,2.9539]
[1753471148561,1.642,3656.5,3656.3,0.1368]
[1753471148764,3.0,3656.8,3656.3,0.1368]
[1753471148765,4.92693053,3656.4,3656.3,0.1368]
[1753471148934,4.37708013,3656.2,3656.1,0.001]
[1753471149134,4.37708013,3656.2,3656.1,2.492]
[1753471149560,4.37708013,3656.2,3656.1,2.9549]
[1753471149863,4.37702615,3656.3,3656.1,2.9549]
[1753471150069,1.642,3656.2,3656.1,2.492]
[1753471150279,1.642,3656.2,3656.1,2.9429]
[1753471150443,1.642,3656.2,3656.1,2.492]
[1753471150767,0.14285955,3656.7,3656.3,2.73495942]
[1753471150970,3.0,3657.1,3656.5,2.73481082]
[1753471151269,0.25566751,3657.1,3656.8,2.73462076]
[1753471151585,0.1428406,3657.2,3657.0,0.1368]
[1753471151734,1.7848406,3657.2,3657.1,2.491]
[1753471151933,2.04050811,3657.2,3657.1,2.9539]
[1753471152334,2.04050811,3657.2,3657.1,3.4048]
[1753471152634,7.77484038,3657.2,3657.1,2.491]
[1753471152834,5.73440704,3657.1,3657.0,0.1368]
[1753471153035,5.99007455,3657.1,3657.0,2.6278]
[1753471153550,5.99007455,3657.1,3656.7,1.2602]
[1753471153551,2.73463137,3656.8,3656.7,0.1368]
[1753471153761,2.73463137,3656.8,3656.7,3.0907]
[1753471154071,4.37658618,3656.9,3656.7,3.0907]
[1753471154379,4.92670615,3656.7,3656.6,2.491]
[1753471154669,5.38610615,3656.7,3656.6,2.491]
[1753471155234,5.64183542,3656.7,3656.6,2.491]
[1753471155938,1.642,3656.5,3656.4,2.491]
[1753471156449,4.37685573,3656.5,3656.4,2.491]
[1753471157167,0.7933,3657.7,3656.5,0.774]
[1753471157369,0.7933,3657.7,3656.6,0.9138]
[1753471157370,2.73437529,3657.2,3656.6,0.9138]
[1753471157571,0.7933,3657.7,3656.7,2.491]
[1753471157572,3.19370821,3657.3,3656.7,2.491]
[1753471157737,3.552,3657.2,3656.7,2.491]
[1753471157938,0.25580511,3657.1,3656.7,2.9539]
[1753471158136,1.642,3657.1,3656.7,2.9539]
[1753471158335,2.56727953,3657.1,3656.7,2.9539]
[1753471158539,2.82308464,3657.1,3656.7,2.491]
[1753471158762,2.82308464,3657.1,3656.8,0.4629]
[1753471159870,2.56727953,3657.1,3656.8,0.4629]
[1753471160167,2.82323046,3657.1,3656.8,0.4629]
[1753471161071,2.56727953,3657.1,3656.8,0.4629]
[1753471161570,2.56727953,3657.1,3656.7,2.491]
[1753471161882,1.642,3657.1,3656.9,0.4624]
[1753471162872,0.25799977,3657.2,3657.0,0.4624]
[1753471163078,0.002,3657.2,3657.1,5.98050704]
[1753471163443,0.002,3657.2,3657.1,6.89540704]
[1753471164980,0.002,3657.2,3657.1,4.161]
[1753471165185,0.002,3657.2,3657.1,6.89540704]
[1753471167082,0.002,3657.2,3657.1,7.03220704]
[1753471167286,0.002,3657.2,3657.1,8.0088826]
[1753471167846,0.002,3657.2,3657.1,17.05655789]
[1753471178566,0.002,3657.2,3657.1,8.0078826]
[1753471179190,0.002,3657.2,3657.1,14.28864108]
[1753471179982,0.002,3657.2,3657.1,18.22764108]
[1753471183485,0.002,3657.2,3657.1,17.77514108]
[1753471183886,0.002,3657.2,3657.1,18.22764108]
[1753471184272,0.002,3657.2,3657.1,15.73764108]
[1753471184473,0.002,3657.2,3657.1,18.22764108]
[1753471186027,0.002,3657.2,3657.1,15.73764108]
[1753471186308,0.002,3657.2,3657.1,15.28514108]
[1753471186510,0.002,3657.2,3657.1,17.77514108]
[1753471187935,0.4571,3657.2,3657.1,9.30020704]
[1753471188206,0.9376,3657.2,3657.1,9.30020704]
[1753471188974,0.002,3657.2,3657.1,4.0758]
[1753471189178,0.9376,3657.2,3657.1,4.0758]
[1753471189378,0.9376,3657.2,3657.1,6.5658]
[1753471189716,6.82449227,3657.2,3656.6,0.001]
[1753471189901,2.192,3656.9,3656.8,0.1368]
[1753471190218,2.192,3656.8,3656.6,0.001]
[1753471190418,1.4678,3656.8,3656.7,2.493]
[1753471190637,1.8680785,3656.8,3656.7,2.493]
[1753471190913,0.9178,3656.8,3656.7,2.6298]
[1753471191222,0.9178,3656.8,3656.7,2.493]
[1753471191387,3.65243137,3656.8,3656.7,2.493]
[1753471191800,0.9178,3656.8,3656.7,2.493]
[1753471192509,3.65243137,3656.8,3656.7,2.493]
[1753471192713,3.98999652,3656.8,3656.7,2.493]
[1753471193211,1.25536515,3656.8,3656.7,2.493]
[1753471194272,3.98999652,3656.8,3656.7,2.493]
[1753471194679,1.25536515,3656.8,3656.7,2.493]
[1753471194993,1.25536515,3656.8,3656.7,2.6298]
[1753471195179,0.9178,3656.8,3656.7,2.6298]
[1753471198137,0.7883,3657.2,3656.7,5.36445668]
[1753471198312,0.4424,3657.1,3656.7,2.9821]
[1753471198629,0.7883,3657.2,3657.0,0.1368]
[1753471198829,0.4754,3657.1,3657.0,0.1368]
[1753471199124,0.9178,3657.1,3657.0,2.6288]
[1753471200283,0.9178,3657.1,3656.6,2.73576]
[1753471200284,9.64323608,3657.1,3656.6,0.001]
[1753471200595,8.71300615,3656.7,3656.6,2.493]
[1753471200918,9.63080615,3656.7,3656.6,2.493]
[1753471201439,9.63080615,3656.7,3656.6,0.001]
[1753471201599,10.88102242,3656.7,3656.6,0.001]
[1753471202202,10.88102242,3656.7,3656.6,2.493]
[1753471203481,10.40562242,3656.7,3656.6,2.493]
[1753471203682,3.0,3656.7,3656.6,2.6298]
[1753471203899,3.4424,3656.7,3656.6,2.6298]
[1753471204299,6.17710615,3656.7,3656.6,2.6298]
[1753471204517,3.9178,3656.7,3656.6,2.6298]
[1753471204697,6.65250615,3656.7,3656.6,2.6298]
[1753471204882,3.9178,3656.7,3656.6,2.6298]
[1753471205516,7.56030484,3656.7,3656.6,0.1378]
[1753471205718,7.56030484,3656.7,3656.6,0.001]
[1753471209024,3.042,3657.3,3657.2,183.60720082]
[1753471209259,7.41825751,3657.3,3657.2,183.60720082]
[1753471209394,7.55505751,3657.3,3657.2,183.60720082]
[1753471209594,23.98546166,3657.3,3657.2,183.60720082]
[1753471211203,27.52816166,3657.3,3657.2,183.60720082]
[1753471212129,27.77986166,3657.3,3657.2,183.60720082]
[1753471212836,13.43293739,3657.3,3657.2,183.60720082]
[1753471213010,20.49293739,3657.3,3657.2,183.60720082]
[1753471213332,34.99293739,3657.3,3657.2,176.58060585]
[1753471214031,35.24815203,3657.3,3657.2,142.18658648]
[1753471214354,35.24815203,3657.3,3657.2,138.50883797]
[1753471214637,35.24815203,3657.3,3657.2,135.75038267]
[1753471214929,35.24815203,3657.3,3657.2,124.39961726]
[1753471216127,35.24815203,3657.3,3657.2,119.6561316]
[1753471217579,35.24881459,3657.3,3657.2,119.6561316]
[1753471219462,31.66411459,3657.3,3657.2,119.6561316]
[1753471219625,32.22571044,3657.3,3657.2,120.1452316]
[1753471219828,32.22571044,3657.3,3657.2,120.5979316]
[1753471220055,11.73981607,3657.3,3657.2,120.5979316]
[1753471220227,17.47407358,3657.3,3657.2,120.5979316]
[1753471220421,17.47407358,3657.3,3657.2,120.1452316]
[1753471220629,32.52507358,3657.3,3657.2,120.1452316]
[1753471221420,30.03207358,3657.3,3657.2,120.1452316]
[1753471221626,35.22316534,3657.3,3657.2,119.6561316]
[1753471221828,20.72316534,3657.3,3657.2,119.6561316]
[1753471222127,20.97486534,3657.3,3657.2,119.6561316]
[1753471222323,35.47486534,3657.3,3657.2,119.6561316]
[1753471222557,35.47686534,3657.3,3657.2,119.6561316]
[1753471224135,32.98486534,3657.3,3657.2,119.6561316]
[1753471224344,35.47686534,3657.3,3657.2,119.6561316]
[1753471225370,35.47686534,3657.3,3657.2,64.20944855]
[1753471225545,35.88726534,3657.3,3657.2,64.20944855]
[1753471225747,35.34106534,3657.3,3657.2,64.20944855]
[1753471226140,35.34139184,3657.3,3657.2,64.20944855]
[1753471229480,32.84839184,3657.3,3657.2,64.20944855]
[1753471229776,35.34039184,3657.3,3657.2,64.20944855]
[1753471229963,35.78629184,3657.3,3657.2,64.20944855]
[1753471233263,35.88659184,3657.3,3657.2,31.21118688]
[1753471233466,38.76659184,3657.3,3657.2,7.57971244]
[1753471234179,38.76659184,3657.3,3657.2,5.65517607]
[1753471234564,38.61308838,3657.3,3657.2,3.50201259]
[1753471234959,4.92670615,3656.7,3656.6,0.001]
[1753471235143,17.69967436,3656.7,3656.6,0.001]
[1753471235340,17.83647436,3656.7,3656.6,0.001]
[1753471235545,32.33647436,3656.7,3656.6,0.001]
[1753471236746,32.33647436,3656.7,3656.6,0.4531]
[1753471237482,32.33647436,3656.7,3656.6,0.001]
[1753471237693,39.39647436,3656.7,3656.6,0.001]
[1753471237982,39.94267436,3656.7,3656.6,0.001]
[1753471238572,42.82267436,3656.7,3656.6,0.001]
[1753471238785,42.72031423,3656.7,3656.6,0.001]
[1753471239790,42.62001423,3656.7,3656.6,0.001]
[1753471240116,33.26911205,3656.7,3656.6,0.4531]
[1753471240383,33.26911205,3656.7,3656.6,0.9181]
[1753471240613,32.46741205,3656.7,3656.6,0.9181]
[1753471240889,33.01741205,3656.7,3656.6,0.9181]
[1753471241050,33.0173852,3656.7,3656.6,0.9181]
[1753471242862,33.0173569,3656.7,3656.6,0.9181]
[1753471243456,30.5253569,3656.7,3656.6,0.9181]
[1753471243655,33.0173569,3656.7,3656.6,0.9181]
[1753471244091,32.76162745,3656.7,3656.6,0.9181]
[1753471246091,30.26962745,3656.7,3656.6,0.9181]
[1753471246292,32.76162745,3656.7,3656.6,0.9181]
[1753471247075,32.76161214,3656.7,3656.6,0.9181]
[1753471250323,30.26961214,3656.7,3656.6,0.9181]
[1753471250522,32.76161214,3656.7,3656.6,0.9181]
[1753471251522,30.26961214,3656.7,3656.6,0.9181]
[1753471251828,32.76161214,3656.7,3656.6,0.9181]
[1753471253523,27.04223537,3656.7,3656.6,0.9022]
[1753471253729,12.54223537,3656.7,3656.6,0.9022]
[1753471253924,14.48423537,3656.7,3656.6,0.9022]
[1753471254125,9.84223537,3656.7,3656.6,1.6955]
[1753471254291,10.39223537,3656.7,3656.6,1.6955]
[1753471254490,9.6888,3656.7,3656.6,1.6955]
[1753471254689,10.2388,3656.7,3656.6,1.6955]
[1753471256388,7.61,3656.7,3656.6,1.6955]
[1753471256588,7.06,3656.7,3656.6,1.87873]
[1753471256808,7.06,3656.7,3656.6,2.01553]
[1753471257025,0.14282577,3657.0,3656.7,0.8173]
[1753471257325,0.14282577,3657.0,3656.9,0.1368]
[1753471257521,0.14282577,3657.0,3656.9,1.8553]
[1753471258499,0.14282577,3657.0,3656.9,2.3327219]
[1753471258900,0.14282577,3657.0,3656.9,5.06727849]
[1753471259098,0.002,3657.3,3657.1,2.73440704]
[1753471259304,0.002,3657.3,3657.2,0.7727]
[1753471259519,0.002,3657.3,3657.2,1.038]
[1753471259733,0.002,3657.3,3657.2,1.8107]
[1753471261524,0.55,3657.0,3656.9,1.2248]
[1753471261940,3.28448181,3657.0,3656.9,1.2248]
[1753471262093,0.55,3656.8,3656.6,0.7737]
[1753471262291,3.28470615,3656.7,3656.6,0.4531]
[1753471262491,5.77670615,3656.7,3656.6,0.001]
[1753471262692,24.91970615,3656.7,3656.6,0.001]
[1753471262894,33.07910615,3656.7,3656.6,0.001]
[1753471263122,35.77819791,3656.7,3656.6,0.001]
[1753471264042,35.93141946,3656.7,3656.6,0.001]
[1753471264195,36.13168537,3656.7,3656.6,0.001]
[1753471265144,45.19178841,3656.7,3656.6,0.001]
[1753471266820,3.28508013,3656.2,3655.9,0.001]
[1753471267021,11.1598872,3656.2,3655.9,0.001]
[1753471267356,21.47261179,3656.2,3655.9,0.001]
[1753471268167,35.97261179,3656.2,3655.9,0.001]
[1753471269652,35.97261299,3656.2,3656.1,1e-08]
[1753471269860,43.03261299,3656.2,3656.1,1e-08]
[1753471274267,32.83098745,3656.2,3656.1,0.45210001]
[1753471274470,32.97383185,3656.2,3656.1,0.45210001]
[1753471274776,33.52383185,3656.2,3656.1,0.45210001]
[1753471275157,33.52383185,3656.2,3656.1,1e-08]
[1753471275372,43.28879049,3656.2,3656.1,1e-08]
[1753471275840,42.44109049,3656.2,3656.1,1e-08]
[1753471278462,42.28786774,3656.2,3656.1,1e-08]
[1753471278668,42.44088057,3656.2,3656.1,1e-08]
[1753471287001,42.44288057,3656.2,3656.1,1e-08]
[1753471287319,39.52269918,3656.2,3656.1,1e-08]
[1753471287476,39.67573796,3656.2,3656.1,1e-08]
[1753471288201,4.92830457,3655.9,3655.8,1e-08]
[1753471288376,17.94116638,3655.9,3655.8,1e-08]
[1753471290931,17.94116638,3655.9,3655.8,0.62800001]
[1753471291221,25.00116638,3655.9,3655.8,1.10080001]
[1753471291424,3.18075573,3656.5,3656.4,44.3833409]
[1753471291625,15.01717494,3656.5,3656.4,44.3833409]
[1753471291809,15.15397494,3656.5,3656.4,42.0774209]
[1753471292120,15.15397494,3656.5,3656.4,35.1596609]
[1753471292429,29.65397494,3656.5,3656.4,35.1596609]
[1753471293310,33.20397494,3656.5,3656.4,35.1596609]
[1753471294729,32.35627494,3656.5,3656.4,35.1596609]
[1753471295633,32.95417494,3656.5,3656.4,35.1596609]
[1753471295817,33.40007494,3656.5,3656.4,35.1596609]
[1753471297229,40.46007494,3656.5,3656.4,35.1596609]
[1753471297931,40.01417494,3656.5,3656.4,35.1596609]
[1753471298134,39.41627494,3656.5,3656.4,35.1596609]
[1753471301538,30.63034046,3656.5,3656.4,35.1596609]
[1753471301738,29.07465573,3656.5,3656.4,36.2604609]
[1753471301909,29.92465573,3656.5,3656.4,36.2604609]
[1753471302109,24.98165573,3656.5,3656.4,36.2604609]
[1753471302300,24.43165573,3656.5,3656.4,36.2604609]
[1753471302506,30.06747946,3656.5,3656.4,36.2604609]
[1753471302833,30.47465573,3656.5,3656.4,36.2604609]
[1753471303234,27.43165573,3656.5,3656.4,36.2604609]
[1753471303426,30.07751827,3656.5,3656.4,36.2604609]
[1753471303737,30.22034704,3656.5,3656.4,36.2604609]
[1753471303940,30.77034704,3656.5,3656.4,36.2604609]
[1753471304241,30.62751827,3656.5,3656.4,36.2604609]
[1753471304423,28.13551827,3656.5,3656.4,36.2604609]
[1753471304624,30.62751827,3656.5,3656.4,36.2604609]
[1753471307637,28.13551827,3656.5,3656.4,35.7876609]
[1753471307813,30.62751827,3656.5,3656.4,35.1596609]
[1753471308753,30.62751827,3656.5,3656.4,23.09902286]
[1753471309050,3.28508013,3656.2,3656.1,0.628]
[1753471309257,15.07001461,3656.2,3656.1,0.628]
[1753471309561,15.36067715,3656.2,3656.1,1.1008]
[1753471310672,29.86067715,3656.2,3656.1,1.1008]
[1753471310835,29.86067715,3656.2,3656.1,0.628]
[1753471313061,29.86067715,3656.2,3656.1,1.1014]
[1753471313467,23.01774267,3656.2,3656.1,1.8872]
[1753471313764,0.002,3656.5,3656.2,0.8091]
[1753471313964,0.1368,3656.3,3656.2,0.8091]
[1753471314169,15.1868,3656.3,3656.2,0.8091]
[1753471314370,18.1868,3656.3,3656.2,0.8091]
[1753471314533,17.6368,3656.3,3656.2,1.2458]
[1753471314734,18.1868,3656.3,3656.2,2.0549]
[1753471319457,3.81569345,3656.9,3656.6,1.2458]
[1753471319657,3.81569345,3656.9,3656.7,0.7724]
[1753471319859,0.1368,3656.7,3656.6,0.4734]
[1753471320059,2.6288,3656.7,3656.6,0.4734]
[1753471320261,3.02424934,3656.7,3656.5,9.3192]
[1753471320461,30.61763448,3656.6,3656.5,9.3192]
[1753471320853,36.90241542,3656.6,3656.5,9.3192]
[1753471321053,3.28530457,3655.9,3655.8,1e-08]
[1753471321277,12.80909109,3655.9,3655.8,1e-08]
[1753471321479,12.80909109,3655.9,3655.8,0.77240001]
[1753471322378,12.20703905,3655.9,3655.8,0.77240001]
[1753471322582,5.91410457,3655.9,3655.8,0.77240001]
[1753471322890,5.91410457,3655.9,3655.8,1.24580001]
[1753471323610,0.6868,3655.9,3655.8,2.06410001]
[1753471323908,2.6288,3655.9,3655.8,2.06410001]
[1753471324650,3.1788,3655.9,3655.8,2.06410001]
[1753471327193,3.1788,3655.9,3655.8,1.59070001]
[1753471327353,3.1788,3655.9,3655.8,2.06410001]
[1753471328327,5.91410457,3655.9,3655.8,2.06410001]
[1753471328618,6.06765767,3655.9,3655.8,2.06410001]
[1753471328757,2.6455531,3655.9,3655.8,2.27051001]
[1753471329076,2.492,3655.9,3655.8,2.27051001]
[1753471329389,2.492,3655.9,3655.8,2.06410001]
[1753471329890,0.2903531,3656.0,3655.8,1.24580001]
[1753471330187,0.1368,3656.3,3656.0,0.8547]
[1753471330392,2.6288,3656.3,3656.1,1.2458]
[1753471330588,2.6288,3656.3,3656.0,0.8547]
[1753471330589,0.15358219,3656.5,3656.2,1.2458]
[1753471330793,2.64558219,3656.5,3656.3,0.8547]
[1753471330965,0.15358219,3656.5,3656.4,1.2458]
[1753471331293,14.5,3656.6,3656.4,2.1005]
[1753471331588,14.5,3656.6,3656.5,2.1005]
[1753471331753,14.65356692,3656.6,3656.5,2.1005]
[1753471331952,14.5,3656.6,3656.5,2.1005]
[1753471333092,14.5,3656.6,3656.5,1.6271]
[1753471333492,17.23478094,3656.6,3656.5,2.1005]
[1753471333804,26.33753532,3656.6,3656.5,0.8547]
[1753471334102,26.49103895,3656.6,3656.5,0.8547]
[1753471334481,26.33753532,3656.6,3656.5,0.8547]
[1753471334908,20.04460084,3656.6,3656.5,1.6271]
[1753471335092,17.78478094,3656.6,3656.5,1.6271]
[1753471336405,17.78478094,3656.6,3656.5,0.8547]
[1753471337121,0.55,3656.5,3656.3,1.6006]
[1753471337323,2.6288,3656.4,3656.3,1.6006]
[1753471337822,17.1288,3656.4,3656.3,1.6006]
[1753471341274,18.7718,3656.4,3656.3,1.6006]
[1753471341428,17.1288,3656.4,3656.3,1.6006]
[1753471341628,14.6368,3656.4,3656.3,1.6006]
[1753471341929,17.1288,3656.4,3656.3,1.6006]
[1753471342227,17.1288,3656.4,3656.0,1.7869]
[1753471342429,17.1288,3656.4,3656.1,0.9208]
[1753471342430,2.7350305,3656.3,3656.1,0.9208]
[1753471342628,2.7350305,3656.3,3656.0,1.3313]
[1753471342629,3.28515494,3656.1,3656.0,0.8661]
[1753471342958,2.7352878,3656.0,3655.8,0.92080001]
[1753471343263,2.7352878,3656.0,3655.9,0.9208]
[1753471343956,2.7352878,3656.0,3655.8,1e-08]
[1753471343957,0.55,3655.9,3655.8,1e-08]
[1753471344138,4.7075575,3655.9,3655.8,1e-08]
[1753471344338,6.72437078,3655.9,3655.8,1e-08]
[1753471345565,6.72435264,3655.9,3655.8,1e-08]
[1753471346123,6.72435264,3655.9,3655.8,0.92080001]
[1753471346365,6.06664393,3655.9,3655.8,0.92080001]
[1753471347060,20.56664393,3655.9,3655.8,0.92080001]
[1753471347486,17.83233936,3655.9,3655.8,1.38600001]
[1753471349073,17.83233936,3655.9,3655.8,0.92080001]
[1753471349244,17.83233936,3655.9,3655.8,1e-08]
[1753471351278,15.34033936,3655.9,3655.8,1e-08]
[1753471351484,19.4115133,3655.9,3655.8,1e-08]
[1753471354068,22.14681787,3655.9,3655.8,1e-08]
[1753471354263,22.14681822,3655.9,3655.8,1e-08]
[1753471354455,25.14681822,3655.9,3655.8,1e-08]
[1753471355656,23.56764428,3655.9,3655.8,0.92080001]
[1753471356590,20.83233971,3655.9,3655.8,1.38600001]
[1753471356790,23.56764428,3655.9,3655.8,1.38600001]
[1753471358393,23.56764428,3655.9,3655.8,0.92080001]
[1753471359894,23.56764428,3655.9,3655.8,1e-08]
[1753471360262,24.94384428,3655.9,3655.8,1e-08]
[1753471361298,21.07564428,3655.9,3655.8,0.92080001]
[1753471361598,23.56764428,3655.9,3655.8,0.92080001]
[1753471363397,21.07566429,3655.9,3655.8,0.92080001]
[1753471363600,26.26675605,3655.9,3655.8,1e-08]
[1753471363778,23.56766429,3655.9,3655.8,1e-08]
[1753471364096,24.01906429,3655.9,3655.8,1e-08]
[1753471364284,23.56766429,3655.9,3655.8,1e-08]
[1753471366707,31.23679877,3655.9,3655.8,1e-08]
[1753471366913,31.83519877,3655.9,3655.8,1e-08]
[1753471368516,30.91039877,3655.9,3655.8,1e-08]
[1753471368699,30.45899877,3655.9,3655.8,1e-08]
[1753471370619,31.82619877,3655.9,3655.8,1e-08]
[1753471371112,30.90079877,3655.9,3655.8,1e-08]
[1753471371498,32.54379877,3655.9,3655.8,1e-08]
[1753471371705,33.46919877,3655.9,3655.8,1e-08]
[1753471376433,32.54379877,3655.9,3655.8,1e-08]
[1753471377037,33.46919877,3655.9,3655.8,1e-08]
[1753471379113,32.10199877,3655.9,3655.8,1e-08]
[1753471379343,33.46919877,3655.9,3655.8,1e-08]
[1753471380223,40.52919877,3655.9,3655.8,1e-08]
[1753471380548,14.8200132,3655.4,3655.3,0.001]
[1753471380705,17.46557292,3655.4,3655.3,0.001]